[Event "Early-Titled-Tuesday-Blitz-November-28-2023"]
[Site "Chess.com"]
[Date "2023.11.28"]
[Round "2"]
[White "GMJustin"]
[Black "Let_it_be_1"]
[Result "0-1"]
[WhiteElo "2276"]
[BlackElo "2668"]
[TimeControl "180+1"]
[EndTime "8:18:08 PST"]
[Termination "Let_it_be_1 won on time"]

1. d4 {[%clk 0:02:35.8]} 1... d5 {[%clk 0:02:59.9]} 2. c4 {[%clk 0:02:34.9]}
2... e6 {[%clk 0:03:00]} 3. Nc3 {[%clk 0:02:33.4]} 3... Be7 {[%clk 0:02:59.8]}
4. cxd5 {[%clk 0:02:19.6]} 4... exd5 {[%clk 0:02:59.9]} 5. Nf3 {[%clk
0:02:19.9]} 5... c6 {[%clk 0:02:59.9]} 6. Qc2 {[%clk 0:02:05.8]} 6... g6 {[%clk
0:02:59.5]} 7. e4 {[%clk 0:01:49.7]} 7... dxe4 {[%clk 0:02:59.1]} 8. Nxe4 {[%clk
0:01:49.9]} 8... Nf6 {[%clk 0:02:51.2]} 9. Nxf6+ {[%clk 0:01:41.7]} 9... Bxf6
{[%clk 0:02:51.4]} 10. Bh6 {[%clk 0:01:40]} 10... Qa5+ {[%clk 0:02:22.3]} 11.
Qd2 {[%clk 0:01:32.4]} 11... Qxd2+ {[%clk 0:02:12.7]} 12. Kxd2 {[%clk
0:01:32.1]} 12... Be6 {[%clk 0:02:06.5]} 13. Re1 {[%clk 0:01:30.7]} 13... Nd7
{[%clk 0:02:03.9]} 14. Bc4 {[%clk 0:01:24.6]} 14... O-O-O {[%clk 0:01:39.6]} 15.
Bxe6 {[%clk 0:01:24.3]} 15... fxe6 {[%clk 0:01:36.6]} 16. Rxe6 {[%clk
0:01:24.1]} 16... Bxd4 {[%clk 0:01:19.3]} 17. Nxd4 {[%clk 0:01:21.3]} 17... Nc5
{[%clk 0:01:19.5]} 18. Kc3 {[%clk 0:00:58.9]} 18... Na4+ {[%clk 0:01:01.7]} 19.
Kc2 {[%clk 0:00:51.7]} 19... Rxd4 {[%clk 0:00:50.3]} 20. Bg7 {[%clk 0:00:51.7]}
20... Rc4+ {[%clk 0:00:47.6]} 21. Kd3 {[%clk 0:00:28.3]} 21... b5 {[%clk
0:00:33.4]} 22. Rxc6+ {[%clk 0:00:21.5]} 22... Rxc6 {[%clk 0:00:33]} 23. Bxh8
{[%clk 0:00:21.7]} 23... Rd6+ {[%clk 0:00:26.6]} 24. Ke3 {[%clk 0:00:21.9]}
24... Re6+ {[%clk 0:00:25.3]} 25. Kf3 {[%clk 0:00:20.7]} 25... Rd6 {[%clk
0:00:25.1]} 26. Rc1+ {[%clk 0:00:19.2]} 26... Kb7 {[%clk 0:00:24.9]} 27. Rc2
{[%clk 0:00:18.5]} 27... Nb6 {[%clk 0:00:25]} 28. h4 {[%clk 0:00:17.3]} 28...
Rd3+ {[%clk 0:00:22.8]} 29. Ke4 {[%clk 0:00:15.4]} 29... Rd1 {[%clk 0:00:21.8]}
30. g4 {[%clk 0:00:13.9]} 30... a5 {[%clk 0:00:20.5]} 31. Be5 {[%clk 0:00:12.4]}
31... Nc4 {[%clk 0:00:19.6]} 32. Bg3 {[%clk 0:00:10.5]} 32... Re1+ {[%clk
0:00:16.3]} 33. Kf4 {[%clk 0:00:09.7]} 33... a4 {[%clk 0:00:14.5]} 34. Kg5
{[%clk 0:00:09]} 34... Rb1 {[%clk 0:00:11.7]} 35. Kh6 {[%clk 0:00:06.4]} 35...
Rxb2 {[%clk 0:00:10.9]} 36. Rxb2 {[%clk 0:00:06.2]} 36... Nxb2 {[%clk
0:00:10.8]} 37. Kxh7 {[%clk 0:00:06.6]} 37... Nc4 {[%clk 0:00:09.7]} 38. Kxg6
{[%clk 0:00:06.4]} 38... b4 {[%clk 0:00:10.3]} 39. h5 {[%clk 0:00:05.6]} 39...
b3 {[%clk 0:00:10.6]} 40. axb3 {[%clk 0:00:04.5]} 40... axb3 {[%clk 0:00:11]}
41. Bh4 {[%clk 0:00:01.6]} 41... Ne5+ {[%clk 0:00:08.8]} 42. Kf5 {[%clk
0:00:01.8]} 42... b2 {[%clk 0:00:09.2]} 43. Kxe5 {[%clk 0:00:01.5]} 43... b1=Q
{[%clk 0:00:09.4]} 0-1

[Event "Early-Titled-Tuesday-Blitz-November-28-2023"]
[Site "Chess.com"]
[Date "2023.11.28"]
[Round "2"]
[White "HanSchut"]
[Black "tetrix83"]
[Result "0-1"]
[WhiteElo "2302"]
[BlackElo "2518"]
[TimeControl "180+1"]
[EndTime "8:18:09 PST"]
[Termination "tetrix83 won on time"]

1. e4 {[%clk 0:02:59.7]} 1... c5 {[%clk 0:02:59.4]} 2. Nf3 {[%clk 0:02:59.4]}
2... d6 {[%clk 0:02:59.7]} 3. d4 {[%clk 0:02:59.1]} 3... cxd4 {[%clk 0:03:00.6]}
4. Nxd4 {[%clk 0:02:59.7]} 4... Nf6 {[%clk 0:03:01.1]} 5. f3 {[%clk 0:03:00]}
5... a6 {[%clk 0:02:56.7]} 6. c4 {[%clk 0:03:00.1]} 6... Nc6 {[%clk 0:02:56.9]}
7. Be3 {[%clk 0:02:59.9]} 7... e6 {[%clk 0:02:56.2]} 8. Nc3 {[%clk 0:03:00]}
8... Be7 {[%clk 0:02:53.6]} 9. Qd2 {[%clk 0:03:00.2]} 9... d5 {[%clk 0:02:54]}
10. cxd5 {[%clk 0:03:00.2]} 10... exd5 {[%clk 0:02:51.5]} 11. exd5 {[%clk
0:02:51.3]} 11... Nxd5 {[%clk 0:02:50.6]} 12. Nxc6 {[%clk 0:02:50.7]} 12... bxc6
{[%clk 0:02:40.3]} 13. Nxd5 {[%clk 0:02:50.6]} 13... cxd5 {[%clk 0:02:39.6]} 14.
Bd4 {[%clk 0:02:48.5]} 14... O-O {[%clk 0:02:37.9]} 15. Be2 {[%clk 0:02:48.6]}
15... Be6 {[%clk 0:02:36]} 16. O-O {[%clk 0:02:48.1]} 16... a5 {[%clk
0:02:36.4]} 17. b3 {[%clk 0:02:41]} 17... Bb4 {[%clk 0:02:30.4]} 18. Qb2 {[%clk
0:02:35.6]} 18... f6 {[%clk 0:02:28.3]} 19. Rad1 {[%clk 0:02:32.9]} 19... Qd6
{[%clk 0:02:24.4]} 20. Kh1 {[%clk 0:02:08.5]} 20... Bf7 {[%clk 0:02:15.1]} 21.
Bd3 {[%clk 0:01:59]} 21... Rfc8 {[%clk 0:02:12.5]} 22. Qb1 {[%clk 0:01:44.3]}
22... h6 {[%clk 0:02:12.2]} 23. Bg6 {[%clk 0:01:31.6]} 23... Bxg6 {[%clk
0:01:57.9]} 24. Qxg6 {[%clk 0:01:30.4]} 24... Rc6 {[%clk 0:01:49.2]} 25. Be3
{[%clk 0:01:14.1]} 25... Kh8 {[%clk 0:01:44.9]} 26. Rd4 {[%clk 0:01:00.4]} 26...
Qf8 {[%clk 0:00:49.4]} 27. Rxd5 {[%clk 0:00:51.2]} 27... Re8 {[%clk 0:00:44.4]}
28. Bc1 {[%clk 0:00:45.7]} 28... Rce6 {[%clk 0:00:38.7]} 29. Bd2 {[%clk
0:00:32.6]} 29... Re2 {[%clk 0:00:31]} 30. Bxb4 {[%clk 0:00:22.6]} 30... axb4
{[%clk 0:00:31.9]} 31. Qb1 {[%clk 0:00:19.3]} 31... Qe7 {[%clk 0:00:25.8]} 32.
Rdd1 {[%clk 0:00:17.9]} 32... Qa7 {[%clk 0:00:22.4]} 33. Qg6 {[%clk 0:00:10.5]}
33... Qxa2 {[%clk 0:00:15.7]} 34. Rd7 {[%clk 0:00:10]} 34... R2e7 {[%clk
0:00:15.7]} 35. Rxe7 {[%clk 0:00:05.9]} 35... Rxe7 {[%clk 0:00:16.6]} 36. Rd1
{[%clk 0:00:04.5]} 36... Qd2 {[%clk 0:00:07.1]} 37. Ra1 {[%clk 0:00:03.5]} 37...
Re1+ {[%clk 0:00:03.5]} 0-1

[Event "Early-Titled-Tuesday-Blitz-November-28-2023"]
[Site "Chess.com"]
[Date "2023.11.28"]
[Round "2"]
[White "giomar27"]
[Black "JaloliddinIlkhomi"]
[Result "0-1"]
[WhiteElo "2440"]
[BlackElo "2718"]
[TimeControl "180+1"]
[EndTime "8:18:11 PST"]
[Termination "JaloliddinIlkhomi won by checkmate"]

1. e4 {[%clk 0:03:00.9]} 1... e6 {[%clk 0:02:58]} 2. d3 {[%clk 0:02:58.3]} 2...
d5 {[%clk 0:02:56.6]} 3. Nd2 {[%clk 0:02:58.2]} 3... c5 {[%clk 0:02:56.5]} 4.
Ngf3 {[%clk 0:02:57.9]} 4... Nc6 {[%clk 0:02:57]} 5. g3 {[%clk 0:02:58.2]} 5...
Bd6 {[%clk 0:02:57.6]} 6. Bg2 {[%clk 0:02:57.4]} 6... Nge7 {[%clk 0:02:58]} 7.
O-O {[%clk 0:02:57.2]} 7... O-O {[%clk 0:02:58.6]} 8. Re1 {[%clk 0:02:57]} 8...
Qc7 {[%clk 0:02:59.2]} 9. c3 {[%clk 0:02:56.7]} 9... f6 {[%clk 0:02:59.6]} 10.
Qc2 {[%clk 0:02:54.3]} 10... d4 {[%clk 0:02:50.6]} 11. Nc4 {[%clk 0:02:49.2]}
11... e5 {[%clk 0:02:50.1]} 12. a4 {[%clk 0:02:48.3]} 12... Be6 {[%clk
0:02:47.2]} 13. cxd4 {[%clk 0:02:36]} 13... cxd4 {[%clk 0:02:36.2]} 14. Bd2
{[%clk 0:02:33.9]} 14... Nb4 {[%clk 0:02:28.2]} 15. Qb3 {[%clk 0:02:28.1]} 15...
Nxd3 {[%clk 0:02:26.8]} 16. Qxd3 {[%clk 0:02:23.5]} 16... Qxc4 {[%clk
0:02:21.4]} 17. Qxc4 {[%clk 0:02:18.5]} 17... Bxc4 {[%clk 0:02:22.3]} 18. Rec1
{[%clk 0:02:17.6]} 18... Be6 {[%clk 0:02:19.2]} 19. Bf1 {[%clk 0:02:14.1]} 19...
Rfc8 {[%clk 0:02:17.7]} 20. Ne1 {[%clk 0:02:12.8]} 20... Rxc1 {[%clk 0:02:16.8]}
21. Rxc1 {[%clk 0:02:12.6]} 21... Rc8 {[%clk 0:02:17.4]} 22. Rxc8+ {[%clk
0:02:11.6]} 22... Nxc8 {[%clk 0:02:17.6]} 23. Nd3 {[%clk 0:02:12.3]} 23... Nb6
{[%clk 0:02:17.4]} 24. a5 {[%clk 0:02:09.5]} 24... Nc4 {[%clk 0:02:17.5]} 25.
Be1 {[%clk 0:02:04.8]} 25... Bd7 {[%clk 0:01:31.8]} 26. f4 {[%clk 0:01:58.7]}
26... Ne3 {[%clk 0:01:30.5]} 27. Be2 {[%clk 0:01:52.8]} 27... Bc6 {[%clk
0:01:28.2]} 28. Bf3 {[%clk 0:01:40.5]} 28... exf4 {[%clk 0:01:15.2]} 29. gxf4
{[%clk 0:01:40.3]} 29... Bc7 {[%clk 0:00:44.2]} 30. b4 {[%clk 0:01:39.3]} 30...
f5 {[%clk 0:00:41.2]} 31. Nc5 {[%clk 0:01:32.4]} 31... Bxf4 {[%clk 0:00:38.2]}
32. Kf2 {[%clk 0:01:28.2]} 32... Nc2 {[%clk 0:00:34.6]} 33. exf5 {[%clk
0:01:25.1]} 33... Bd6 {[%clk 0:00:23.9]} 34. Nxb7 {[%clk 0:01:19.4]} 34... Bxb7
{[%clk 0:00:22.9]} 35. Bxb7 {[%clk 0:01:18]} 35... Bxb4 {[%clk 0:00:21.1]} 36.
Bxb4 {[%clk 0:01:11.2]} 36... Nxb4 {[%clk 0:00:22]} 37. Kf3 {[%clk 0:01:07.2]}
37... Kf7 {[%clk 0:00:22.2]} 38. Ke4 {[%clk 0:01:07.5]} 38... d3 {[%clk
0:00:22.8]} 39. Bc8 {[%clk 0:01:05.5]} 39... Kf6 {[%clk 0:00:22.7]} 40. Ke3
{[%clk 0:00:58.1]} 40... Ke5 {[%clk 0:00:18.2]} 41. Be6 {[%clk 0:00:54.6]} 41...
Nc6 {[%clk 0:00:16.5]} 42. Kxd3 {[%clk 0:00:52.5]} 42... Nxa5 {[%clk 0:00:16.9]}
43. Kc3 {[%clk 0:00:48.4]} 43... Nc6 {[%clk 0:00:17.3]} 44. Bc8 {[%clk 0:00:47]}
44... Nd4 {[%clk 0:00:17.5]} 45. f6 {[%clk 0:00:44.6]} 45... gxf6 {[%clk
0:00:17.1]} 46. Ba6 {[%clk 0:00:45.3]} 46... f5 {[%clk 0:00:17.3]} 47. Kd3
{[%clk 0:00:45.9]} 47... f4 {[%clk 0:00:17.7]} 48. Kd2 {[%clk 0:00:45.7]} 48...
Nf5 {[%clk 0:00:15.7]} 49. Ke1 {[%clk 0:00:45.5]} 49... Ke4 {[%clk 0:00:14.8]}
50. Kf1 {[%clk 0:00:45.5]} 50... Ke3 {[%clk 0:00:14.8]} 51. Kg1 {[%clk
0:00:42.5]} 51... f3 {[%clk 0:00:15]} 52. Kf1 {[%clk 0:00:42.8]} 52... Nd4
{[%clk 0:00:15.3]} 53. Kg1 {[%clk 0:00:42]} 53... h5 {[%clk 0:00:15.8]} 54. Kf1
{[%clk 0:00:42.2]} 54... h4 {[%clk 0:00:16.5]} 55. h3 {[%clk 0:00:40.6]} 55...
Nc6 {[%clk 0:00:16.6]} 56. Ke1 {[%clk 0:00:39.7]} 56... Nb4 {[%clk 0:00:17.5]}
57. Bc4 {[%clk 0:00:39.2]} 57... a5 {[%clk 0:00:17.3]} 58. Kf1 {[%clk
0:00:39.6]} 58... a4 {[%clk 0:00:17.7]} 59. Ke1 {[%clk 0:00:40.1]} 59... a3
{[%clk 0:00:18.3]} 60. Bb3 {[%clk 0:00:40.5]} 60... a2 {[%clk 0:00:18.8]} 61.
Bxa2 {[%clk 0:00:41.4]} 61... Nxa2 {[%clk 0:00:19.4]} 62. Kf1 {[%clk 0:00:42.3]}
62... Nc3 {[%clk 0:00:19.9]} 63. Kg1 {[%clk 0:00:42.5]} 63... Ne4 {[%clk
0:00:20.6]} 64. Kf1 {[%clk 0:00:43]} 64... Ng3+ {[%clk 0:00:21.1]} 65. Kg1
{[%clk 0:00:43.7]} 65... f2+ {[%clk 0:00:21.5]} 66. Kg2 {[%clk 0:00:44.4]} 66...
f1=Q+ {[%clk 0:00:21.2]} 67. Kh2 {[%clk 0:00:45.3]} 67... Qh1# {[%clk
0:00:21.5]} 0-1

[Event "Early-Titled-Tuesday-Blitz-November-28-2023"]
[Site "Chess.com"]
[Date "2023.11.28"]
[Round "2"]
[White "sokidze"]
[Black "Eloist"]
[Result "1-0"]
[WhiteElo "2749"]
[BlackElo "2392"]
[TimeControl "180+1"]
[EndTime "8:18:14 PST"]
[Termination "sokidze won on time"]

1. d4 {[%clk 0:03:00.9]} 1... e6 {[%clk 0:02:47.8]} 2. c4 {[%clk 0:02:58.8]}
2... Nf6 {[%clk 0:02:46.6]} 3. Nf3 {[%clk 0:02:58.5]} 3... b6 {[%clk 0:02:45.9]}
4. g3 {[%clk 0:02:58.3]} 4... Bb7 {[%clk 0:02:46]} 5. Bg2 {[%clk 0:02:58.5]}
5... Be7 {[%clk 0:02:46.4]} 6. O-O {[%clk 0:02:58.3]} 6... O-O {[%clk
0:02:46.5]} 7. Nc3 {[%clk 0:02:58.3]} 7... Ne4 {[%clk 0:02:46.2]} 8. Bd2 {[%clk
0:02:58.4]} 8... f5 {[%clk 0:02:45.7]} 9. Rc1 {[%clk 0:02:54.1]} 9... Bf6 {[%clk
0:02:44.8]} 10. d5 {[%clk 0:02:47.2]} 10... Na6 {[%clk 0:02:43.2]} 11. Be1
{[%clk 0:02:25.8]} 11... Nac5 {[%clk 0:02:35.5]} 12. Nd4 {[%clk 0:02:25.2]}
12... Qe7 {[%clk 0:02:24.4]} 13. b4 {[%clk 0:01:57.9]} 13... Nxc3 {[%clk
0:02:17.7]} 14. Bxc3 {[%clk 0:01:54.4]} 14... Ne4 {[%clk 0:02:16.4]} 15. Be1
{[%clk 0:01:54.1]} 15... c5 {[%clk 0:02:09.6]} 16. dxc6 {[%clk 0:01:36.1]} 16...
dxc6 {[%clk 0:02:07.2]} 17. Nb3 {[%clk 0:01:34.5]} 17... Rad8 {[%clk 0:02:03.9]}
18. Qc2 {[%clk 0:01:34]} 18... c5 {[%clk 0:01:51.7]} 19. f3 {[%clk 0:01:30.6]}
19... Ng5 {[%clk 0:01:32.2]} 20. bxc5 {[%clk 0:01:28.8]} 20... bxc5 {[%clk
0:01:30.7]} 21. Bf2 {[%clk 0:01:25.7]} 21... Rc8 {[%clk 0:01:19.9]} 22. Qd2
{[%clk 0:01:25.3]} 22... Rfd8 {[%clk 0:01:11.7]} 23. Qa5 {[%clk 0:01:25]} 23...
Bd4 {[%clk 0:00:56.6]} 24. Nxd4 {[%clk 0:00:50.5]} 24... cxd4 {[%clk 0:00:55.2]}
25. Qxa7 {[%clk 0:00:50.7]} 25... Ra8 {[%clk 0:00:48.7]} 26. Qb6 {[%clk
0:00:49.9]} 26... Ra6 {[%clk 0:00:27.2]} 27. Qb2 {[%clk 0:00:45]} 27... e5
{[%clk 0:00:24]} 28. Rfd1 {[%clk 0:00:42.5]} 28... Rda8 {[%clk 0:00:21.7]} 29.
c5 {[%clk 0:00:36.1]} 29... Bd5 {[%clk 0:00:17.8]} 30. Qb5 {[%clk 0:00:15.7]}
30... Ra5 {[%clk 0:00:15.8]} 31. Qd3 {[%clk 0:00:15.5]} 31... g6 {[%clk
0:00:13.4]} 32. c6 {[%clk 0:00:15]} 32... Ra3 {[%clk 0:00:12.9]} 33. Qb5 {[%clk
0:00:13]} 33... R3a5 {[%clk 0:00:12.2]} 34. Qb1 {[%clk 0:00:11.8]} 34... Rxa2
{[%clk 0:00:11.6]} 35. c7 {[%clk 0:00:11.9]} 35... Rc8 {[%clk 0:00:11.5]} 36.
Qb5 {[%clk 0:00:11.5]} 36... Qe6 {[%clk 0:00:10.5]} 37. Rc5 {[%clk 0:00:08.4]}
37... Ba8 {[%clk 0:00:06.8]} 38. Rxe5 {[%clk 0:00:08.5]} 38... Qf7 {[%clk
0:00:05.8]} 39. Bxd4 {[%clk 0:00:07.8]} 39... Rxc7 {[%clk 0:00:05]} 40. Qb8+
{[%clk 0:00:06.4]} 40... Qf8 {[%clk 0:00:05.2]} 41. Qxc7 {[%clk 0:00:06.7]} 1-0

[Event "Early-Titled-Tuesday-Blitz-November-28-2023"]
[Site "Chess.com"]
[Date "2023.11.28"]
[Round "2"]
[White "nitpicker"]
[Black "masenik"]
[Result "1/2-1/2"]
[WhiteElo "2309"]
[BlackElo "2508"]
[TimeControl "180+1"]
[EndTime "8:18:14 PST"]
[Termination "Game drawn - insufficient material"]

1. d4 {[%clk 0:02:51.6]} 1... Nf6 {[%clk 0:02:58.7]} 2. c4 {[%clk 0:02:51.6]}
2... e6 {[%clk 0:02:58.9]} 3. g3 {[%clk 0:02:51.2]} 3... c5 {[%clk 0:02:54.9]}
4. d5 {[%clk 0:02:50.3]} 4... exd5 {[%clk 0:02:53]} 5. cxd5 {[%clk 0:02:50.9]}
5... d6 {[%clk 0:02:52.7]} 6. Nc3 {[%clk 0:02:51.1]} 6... g6 {[%clk 0:02:51.2]}
7. Bg2 {[%clk 0:02:51.3]} 7... Bg7 {[%clk 0:02:51.4]} 8. Nf3 {[%clk 0:02:52.1]}
8... O-O {[%clk 0:02:50.9]} 9. O-O {[%clk 0:02:52.7]} 9... Re8 {[%clk
0:02:49.5]} 10. Nd2 {[%clk 0:02:51.7]} 10... a6 {[%clk 0:02:41.5]} 11. a4 {[%clk
0:02:50.9]} 11... Nbd7 {[%clk 0:02:41.5]} 12. h3 {[%clk 0:02:50.6]} 12... b6
{[%clk 0:02:38.1]} 13. Kh2 {[%clk 0:02:40.7]} 13... Bb7 {[%clk 0:02:38]} 14. e4
{[%clk 0:02:30]} 14... h6 {[%clk 0:02:29.2]} 15. f4 {[%clk 0:02:22.7]} 15... Nf8
{[%clk 0:01:56.3]} 16. Nc4 {[%clk 0:02:17.6]} 16... b5 {[%clk 0:01:40.3]} 17.
axb5 {[%clk 0:02:10]} 17... axb5 {[%clk 0:01:41.2]} 18. Rxa8 {[%clk 0:02:08]}
18... Bxa8 {[%clk 0:01:42.1]} 19. Nxb5 {[%clk 0:01:34.4]} 19... Nxe4 {[%clk
0:01:41.9]} 20. Bxe4 {[%clk 0:01:31.7]} 20... Rxe4 {[%clk 0:01:41.5]} 21. Ncxd6
{[%clk 0:01:27.4]} 21... Re7 {[%clk 0:01:25.6]} 22. Qf3 {[%clk 0:01:14.8]} 22...
Rd7 {[%clk 0:01:20.2]} 23. Be3 {[%clk 0:00:49.5]} 23... Rxd6 {[%clk 0:01:16.1]}
24. Nxd6 {[%clk 0:00:49.9]} 24... Qxd6 {[%clk 0:01:16.7]} 25. b3 {[%clk
0:00:41.2]} 25... Qxd5 {[%clk 0:00:57.6]} 26. Qxd5 {[%clk 0:00:37.6]} 26... Bxd5
{[%clk 0:00:58.5]} 27. Bxc5 {[%clk 0:00:30.9]} 27... Bxb3 {[%clk 0:00:57.5]} 28.
Re1 {[%clk 0:00:30.7]} 28... Ne6 {[%clk 0:00:56.8]} 29. Be3 {[%clk 0:00:29.7]}
29... h5 {[%clk 0:00:50.7]} 30. Kg1 {[%clk 0:00:26.4]} 30... Bd5 {[%clk
0:00:49.1]} 31. Kf2 {[%clk 0:00:25.8]} 31... f5 {[%clk 0:00:42.7]} 32. Rd1
{[%clk 0:00:24.3]} 32... Be4 {[%clk 0:00:40.7]} 33. Rd7 {[%clk 0:00:24.1]} 33...
Bf6 {[%clk 0:00:39.3]} 34. Ra7 {[%clk 0:00:22.2]} 34... Bd4 {[%clk 0:00:35.7]}
35. Bxd4 {[%clk 0:00:20.3]} 35... Nxd4 {[%clk 0:00:36.4]} 36. Rd7 {[%clk
0:00:19.2]} 36... Ne6 {[%clk 0:00:30.2]} 37. Ke3 {[%clk 0:00:18.1]} 37... Nf8
{[%clk 0:00:27.5]} 38. Re7 {[%clk 0:00:17.3]} 38... Bd5 {[%clk 0:00:27]} 39. Kd4
{[%clk 0:00:13.7]} 39... Bf7 {[%clk 0:00:26.9]} 40. Ke5 {[%clk 0:00:13]} 40...
Kg7 {[%clk 0:00:27.1]} 41. Rc7 {[%clk 0:00:12.4]} 41... Ne6 {[%clk 0:00:22.4]}
42. Re7 {[%clk 0:00:11.9]} 42... Nc5 {[%clk 0:00:21.6]} 43. Rc7 {[%clk 0:00:12]}
43... Ne4 {[%clk 0:00:21.8]} 44. g4 {[%clk 0:00:12.4]} 44... hxg4 {[%clk
0:00:21.6]} 45. hxg4 {[%clk 0:00:12.4]} 45... Ng3 {[%clk 0:00:15]} 46. Rc3
{[%clk 0:00:09.8]} 46... Ne2 {[%clk 0:00:14.4]} 47. Re3 {[%clk 0:00:09.9]} 47...
Nc1 {[%clk 0:00:11.2]} 48. gxf5 {[%clk 0:00:09.7]} 48... gxf5 {[%clk 0:00:12]}
49. Kxf5 {[%clk 0:00:10]} 49... Nb3 {[%clk 0:00:12.2]} 50. Rxb3 {[%clk
0:00:08.1]} 50... Bxb3 {[%clk 0:00:11.9]} 51. Kg4 {[%clk 0:00:08.1]} 51... Bc2
{[%clk 0:00:12.2]} 52. Kf3 {[%clk 0:00:08.6]} 52... Kf6 {[%clk 0:00:12.7]} 53.
Ke2 {[%clk 0:00:09.2]} 53... Kf5 {[%clk 0:00:13.1]} 54. Kd2 {[%clk 0:00:10.1]}
54... Kxf4 {[%clk 0:00:13.8]} 1/2-1/2

[Event "Early-Titled-Tuesday-Blitz-November-28-2023"]
[Site "Chess.com"]
[Date "2023.11.28"]
[Round "2"]
[White "Leonid_Starozhilov"]
[Black "NovoselovRoman"]
[Result "0-1"]
[WhiteElo "2732"]
[BlackElo "2539"]
[TimeControl "180+1"]
[EndTime "8:18:16 PST"]
[Termination "NovoselovRoman won by resignation"]

1. e4 {[%clk 0:03:00.9]} 1... e6 {[%clk 0:02:59]} 2. d3 {[%clk 0:02:57.4]} 2...
d5 {[%clk 0:02:58.9]} 3. Nf3 {[%clk 0:02:58.3]} 3... Nf6 {[%clk 0:02:49]} 4.
Nbd2 {[%clk 0:02:55.2]} 4... c5 {[%clk 0:02:47.2]} 5. g3 {[%clk 0:02:54.9]} 5...
Nc6 {[%clk 0:02:46.4]} 6. Bg2 {[%clk 0:02:55.4]} 6... Be7 {[%clk 0:02:44.1]} 7.
O-O {[%clk 0:02:55.1]} 7... O-O {[%clk 0:02:43.8]} 8. Re1 {[%clk 0:02:52.6]}
8... b5 {[%clk 0:02:37.8]} 9. e5 {[%clk 0:02:52.8]} 9... Nd7 {[%clk 0:02:37.3]}
10. Nf1 {[%clk 0:02:53.7]} 10... b4 {[%clk 0:02:25.7]} 11. h4 {[%clk 0:02:53.1]}
11... a5 {[%clk 0:02:20.6]} 12. Bf4 {[%clk 0:02:53.7]} 12... a4 {[%clk
0:02:18.5]} 13. h5 {[%clk 0:02:50.5]} 13... Ba6 {[%clk 0:02:11.7]} 14. N1h2
{[%clk 0:02:45.2]} 14... Rc8 {[%clk 0:02:04.8]} 15. Ng4 {[%clk 0:02:42.5]} 15...
a3 {[%clk 0:02:02.1]} 16. b3 {[%clk 0:02:25.8]} 16... Nd4 {[%clk 0:01:49.5]} 17.
h6 {[%clk 0:02:18.6]} 17... g6 {[%clk 0:01:42.5]} 18. Nxd4 {[%clk 0:02:03.5]}
18... cxd4 {[%clk 0:01:40.7]} 19. Rc1 {[%clk 0:01:55.3]} 19... Nb6 {[%clk
0:01:18.3]} 20. Qf3 {[%clk 0:01:43.1]} 20... Na8 {[%clk 0:01:14.9]} 21. Bd2
{[%clk 0:01:12.2]} 21... Nc7 {[%clk 0:01:10.4]} 22. Qf4 {[%clk 0:00:53.4]} 22...
Nb5 {[%clk 0:01:06]} 23. Nf6+ {[%clk 0:00:48.7]} 23... Bxf6 {[%clk 0:01:05.6]}
24. exf6 {[%clk 0:00:47.7]} 24... Qb6 {[%clk 0:01:01.6]} 25. Bh3 {[%clk
0:00:43.5]} 25... Rc6 {[%clk 0:00:53.7]} 26. Bxb4 {[%clk 0:00:40.7]} 26... Rfc8
{[%clk 0:00:50.9]} 27. Kg2 {[%clk 0:00:33.2]} 27... R8c7 {[%clk 0:00:37.3]} 28.
Re2 {[%clk 0:00:24.5]} 28... Bc8 {[%clk 0:00:31.4]} 29. Rce1 {[%clk 0:00:17.1]}
29... Rxc2 {[%clk 0:00:18.4]} 30. Rxc2 {[%clk 0:00:16.4]} 30... Rxc2 {[%clk
0:00:17.8]} 31. Be7 {[%clk 0:00:11.4]} 31... Qc7 {[%clk 0:00:14.7]} 32. Bd6
{[%clk 0:00:11]} 32... Qxd6 {[%clk 0:00:14.3]} 33. Qg5 {[%clk 0:00:07.6]} 33...
Rxa2 {[%clk 0:00:13.7]} 34. Rc1 {[%clk 0:00:07.9]} 34... Bd7 {[%clk 0:00:13.2]}
35. b4 {[%clk 0:00:06.3]} 35... Nc3 {[%clk 0:00:13.4]} 36. b5 {[%clk 0:00:05.9]}
36... Rb2 {[%clk 0:00:13.6]} 37. b6 {[%clk 0:00:05.6]} 37... Rxb6 {[%clk
0:00:13.4]} 38. Qg4 {[%clk 0:00:05.9]} 38... Rb4 {[%clk 0:00:12.5]} 39. Qg5
{[%clk 0:00:05.3]} 39... a2 {[%clk 0:00:12.4]} 40. Qd2 {[%clk 0:00:05.5]} 40...
Rb1 {[%clk 0:00:11.8]} 41. Rxc3 {[%clk 0:00:02.8]} 41... dxc3 {[%clk 0:00:11.2]}
42. Qxc3 {[%clk 0:00:03.7]} 42... a1=Q {[%clk 0:00:10.7]} 0-1

[Event "Early-Titled-Tuesday-Blitz-November-28-2023"]
[Site "Chess.com"]
[Date "2023.11.28"]
[Round "2"]
[White "AndresDelgado77"]
[Black "Agibileg"]
[Result "1-0"]
[WhiteElo "2272"]
[BlackElo "2645"]
[TimeControl "180+1"]
[EndTime "8:18:18 PST"]
[Termination "AndresDelgado77 won on time"]

1. e4 {[%clk 0:03:00]} 1... e5 {[%clk 0:02:58.4]} 2. Nc3 {[%clk 0:02:59]} 2...
g6 {[%clk 0:02:55]} 3. d4 {[%clk 0:02:53.1]} 3... Bg7 {[%clk 0:02:52.5]} 4. dxe5
{[%clk 0:02:51.2]} 4... Bxe5 {[%clk 0:02:53.4]} 5. Nf3 {[%clk 0:02:47.8]} 5...
Bg7 {[%clk 0:02:52.4]} 6. Bg5 {[%clk 0:02:37.7]} 6... f6 {[%clk 0:02:16.9]} 7.
Bf4 {[%clk 0:02:28.5]} 7... d6 {[%clk 0:02:11.8]} 8. Bc4 {[%clk 0:02:23.6]} 8...
Ne7 {[%clk 0:02:09.7]} 9. h4 {[%clk 0:02:12.5]} 9... Bg4 {[%clk 0:02:08.8]} 10.
Qd2 {[%clk 0:02:06.2]} 10... Nbc6 {[%clk 0:01:59.3]} 11. O-O-O {[%clk
0:02:02.5]} 11... Qd7 {[%clk 0:01:58.3]} 12. Kb1 {[%clk 0:01:42.3]} 12... O-O-O
{[%clk 0:01:50.9]} 13. Be3 {[%clk 0:01:25.8]} 13... Kb8 {[%clk 0:01:48.1]} 14.
Nd5 {[%clk 0:01:21.7]} 14... h5 {[%clk 0:01:41.4]} 15. Nf4 {[%clk 0:01:11]}
15... Qc8 {[%clk 0:01:01.4]} 16. Qc3 {[%clk 0:01:04.2]} 16... Ne5 {[%clk
0:00:53.6]} 17. Be2 {[%clk 0:00:53.7]} 17... Nxf3 {[%clk 0:00:50.6]} 18. gxf3
{[%clk 0:00:48]} 18... Bd7 {[%clk 0:00:49.2]} 19. Rhg1 {[%clk 0:00:48]} 19...
Be8 {[%clk 0:00:47.3]} 20. Bc4 {[%clk 0:00:41.6]} 20... c6 {[%clk 0:00:28.9]}
21. Ne6 {[%clk 0:00:37.4]} 21... d5 {[%clk 0:00:20.8]} 22. Bf4+ {[%clk
0:00:26.5]} 22... Ka8 {[%clk 0:00:20]} 23. Nc7+ {[%clk 0:00:25.9]} 23... Qxc7
{[%clk 0:00:19.2]} 24. Bxc7 {[%clk 0:00:25.5]} 24... Rd7 {[%clk 0:00:19.7]} 25.
Bf4 {[%clk 0:00:18.6]} 25... dxc4 {[%clk 0:00:19.6]} 26. Rxd7 {[%clk 0:00:18.5]}
26... Bxd7 {[%clk 0:00:20.5]} 27. Be3 {[%clk 0:00:18.5]} 27... Be6 {[%clk
0:00:19.2]} 28. Qa3 {[%clk 0:00:17.8]} 28... Nc8 {[%clk 0:00:18.7]} 29. Rxg6
{[%clk 0:00:16.5]} 29... Bf8 {[%clk 0:00:18.2]} 30. Qc3 {[%clk 0:00:14.7]} 30...
Be7 {[%clk 0:00:17.7]} 31. Rxf6 {[%clk 0:00:13.7]} 31... Bxf6 {[%clk 0:00:15.2]}
32. Qxf6 {[%clk 0:00:14]} 32... Re8 {[%clk 0:00:15.2]} 33. f4 {[%clk 0:00:13]}
33... b5 {[%clk 0:00:12.4]} 34. f5 {[%clk 0:00:12.5]} 34... Bd7 {[%clk
0:00:06.3]} 35. Qf7 {[%clk 0:00:12.1]} 35... Rd8 {[%clk 0:00:02.7]} 36. Bg5
{[%clk 0:00:11.2]} 36... Be8 {[%clk 0:00:01.4]} 37. Qc7 {[%clk 0:00:08.8]} 37...
Rd1+ {[%clk 0:00:01.8]} 38. Bc1 {[%clk 0:00:08.9]} 38... Bd7 {[%clk 0:00:02.7]}
39. c3 {[%clk 0:00:06.9]} 39... c5 {[%clk 0:00:01.9]} 40. Kc2 {[%clk 0:00:06.7]}
1-0